bitfinex/quotes_BTCUSD_20241107
["timestamp","ask_amount","ask_price","bid_price","bid_amount"]
[1730961124203,0.12471586,74782.0,74778.0,0.037532]
[1730961125271,0.13224102,74781.0,74778.0,0.037532]
[1730961127439,1.5,74780.0,74778.0,0.037532]
[1730961127650,0.13224102,74779.0,74778.0,0.037532]
[1730961128510,0.60381079,74779.0,74778.0,0.037532]
[1730961128715,0.60381079,74779.0,74758.0,0.220831]
[1730961128716,0.59479965,74779.0,74760.0,0.20047982]
[1730961128923,0.27933,74777.0,74768.0,0.20047982]
[1730961129149,0.43457102,74777.0,74768.0,0.20047982]
[1730961129580,0.57181379,74777.0,74768.0,0.20047982]
[1730961129792,0.57381379,74777.0,74768.0,0.20047982]
[1730961130416,0.44157102,74777.0,74768.0,0.20047982]
[1730961130639,0.43957102,74777.0,74768.0,0.20047982]
[1730961131081,0.28284102,74777.0,74768.0,0.20047982]
[1730961131294,0.002,74786.0,74768.0,0.20047982]
[1730961131295,0.12471586,74788.0,74768.0,0.20047982]
[1730961131504,0.12471586,74788.0,74770.0,0.005]
[1730961131505,0.13224102,74787.0,74770.0,0.005]
[1730961131915,0.13224102,74787.0,74777.0,0.20047982]
[1730961132122,0.12471586,74782.0,74779.0,0.20047982]
[1730961132386,0.12471586,74782.0,74769.0,0.20047982]
[1730961132799,0.13224102,74781.0,74770.0,0.20047982]
[1730961133228,0.1,74780.0,74770.0,0.20047982]
[1730961133439,0.17130821,74781.0,74761.0,0.20047982]
[1730961133440,0.1,74778.0,74761.0,0.20047982]
[1730961133680,0.23224102,74777.0,74761.0,0.20047982]
[1730961133885,0.23224102,74777.0,74762.0,0.20047982]
[1730961134091,0.25524102,74777.0,74762.0,0.20047982]
[1730961134291,1.75524102,74777.0,74776.0,0.11648029]
[1730961134700,1.88897102,74777.0,74776.0,0.11648029]
[1730961134916,1.75524102,74777.0,74776.0,0.11648029]
[1730961135983,2.02121379,74777.0,74776.0,0.11648029]
[1730961136183,2.15211379,74777.0,74776.0,0.11648029]
[1730961136418,2.15011379,74777.0,74776.0,0.11648029]
[1730961136872,2.27682965,74777.0,74776.0,0.11648029]
[1730961137089,2.27482965,74777.0,74776.0,0.11648029]
[1730961137299,2.14109965,74777.0,74776.0,0.11648029]
[1730961137530,2.14258688,74777.0,74776.0,0.11648029]
[1730961138178,2.00885688,74777.0,74776.0,0.11648029]
[1730961138415,0.40395688,74777.0,74776.0,0.11648029]
[1730961140410,0.35695688,74777.0,74776.0,0.11648029]
[1730961142031,0.23224102,74777.0,74776.0,0.11648029]
[1730961142875,0.5405828,74777.0,74776.0,0.11648029]
[1730961143083,2.0635828,74777.0,74776.0,0.11648029]
[1730961143285,1.94886694,74777.0,74776.0,0.01839726]
[1730961143662,1.99426694,74777.0,74776.0,0.00919863]
[1730961143882,1.94437102,74777.0,74776.0,0.00919863]
[1730961144293,1.99768605,74777.0,74776.0,0.00919863]
[1730961145329,1.73224102,74777.0,74776.0,0.00919863]
[1730961145530,0.23224102,74777.0,74776.0,0.00919863]
[1730961147064,0.36448379,74777.0,74776.0,0.00919863]
[1730961147474,0.52121379,74777.0,74776.0,0.00919863]
[1730961147758,0.38897102,74777.0,74776.0,0.00919863]
[1730961148139,1.88897102,74777.0,74776.0,0.00919863]
[1730961148988,1.88897102,74777.0,74776.0,0.01003063]
[1730961149198,1.75524102,74777.0,74776.0,0.01003063]
[1730961149409,1.88897102,74777.0,74776.0,0.01003063]
[1730961149622,1.75524102,74777.0,74776.0,0.01003063]
[1730961150050,2.02121379,74777.0,74776.0,0.01003063]
[1730961150504,1.88897102,74777.0,74776.0,0.01003063]
[1730961153013,1.75524102,74777.0,74776.0,0.01003063]
[1730961153251,1.73224102,74777.0,74776.0,0.01003063]
[1730961153885,0.23224102,74777.0,74776.0,0.01003063]
[1730961154446,0.001664,74778.0,74776.0,0.01003063]
[1730961156371,0.13224102,74777.0,74776.0,0.01003063]
[1730961156698,0.15810311,74777.0,74776.0,0.01003063]
[1730961157300,0.13224102,74777.0,74776.0,0.01003063]
[1730961157554,1.63224102,74777.0,74776.0,0.01003063]
[1730961159478,1.76597102,74777.0,74776.0,0.01003063]
[1730961159643,1.78897102,74777.0,74776.0,0.01003063]
[1730961160689,0.28897102,74777.0,74776.0,0.01003063]
[1730961161096,1.79897127,74777.0,74776.0,0.01003063]
[1730961161271,1.92968002,74777.0,74776.0,0.01003063]
[1730961161512,1.93134402,74777.0,74776.0,0.01003063]
[1730961163700,1.76690527,74777.0,74776.0,0.01003063]
[1730961164119,0.26690527,74777.0,74776.0,0.01003063]
[1730961164469,1.74390527,74777.0,74776.0,0.01003063]
[1730961165720,1.73390502,74777.0,74776.0,0.01003063]
[1730961166290,1.73390502,74777.0,74776.0,0.01420934]
[1730961166750,1.73390502,74777.0,74776.0,0.01003063]
[1730961167264,0.23390502,74777.0,74776.0,0.01003063]
[1730961167631,0.23390502,74777.0,74776.0,0.01420931]
[1730961170996,0.24959866,74777.0,74776.0,0.01420931]
[1730961171216,1.74959866,74777.0,74776.0,0.01003063]
[1730961172852,1.96352573,74777.0,74776.0,0.01003063]
[1730961173070,2.03882573,74777.0,74776.0,0.01003063]
[1730961173520,2.17354159,74777.0,74776.0,0.01003063]
[1730961173739,2.04882573,74777.0,74776.0,0.01003063]
[1730961173967,2.03882866,74777.0,74776.0,0.01003063]
[1730961174204,0.54082866,74777.0,74776.0,0.01003063]
[1730961174403,0.58872458,74777.0,74776.0,0.01003063]
[1730961174617,2.14317113,74777.0,74776.0,0.01003063]
[1730961174865,2.14517113,74777.0,74776.0,0.01003063]
[1730961175079,2.26988699,74777.0,74776.0,0.01003063]
[1730961175952,2.26488699,74777.0,74776.0,0.01003063]
[1730961176175,2.26988699,74777.0,74776.0,0.01003063]
[1730961176395,2.26992699,74777.0,74776.0,0.01003063]
[1730961176644,0.005,74770.0,74764.0,0.20047982]
[1730961176879,0.24771586,74765.0,74764.0,0.20047982]
[1730961177103,0.123,74764.0,74758.0,0.220831]
[1730961177315,0.22471586,74759.0,74758.0,0.220831]
[1730961177527,0.35695688,74759.0,74758.0,0.220831]
[1730961180845,0.4122715,74759.0,74758.0,0.220831]
[1730961181961,0.4123115,74759.0,74758.0,0.220831]
[1730961182179,0.49664547,74759.0,74758.0,0.220831]
[1730961182403,0.4123115,74759.0,74758.0,0.220831]
[1730961184764,0.42229313,74759.0,74758.0,0.220831]
[1730961185929,0.4123115,74759.0,74758.0,0.220831]
[1730961187581,0.05535462,74759.0,74758.0,0.220831]
[1730961191878,0.42229537,74759.0,74758.0,0.220831]
[1730961192106,0.46452491,74759.0,74758.0,0.220831]
[1730961192311,0.42229537,74759.0,74758.0,0.220831]
[1730961192514,0.42229459,74759.0,74758.0,0.220831]
[1730961192931,0.4123115,74759.0,74758.0,0.220831]
[1730961193986,0.28759564,74759.0,74758.0,0.220831]
[1730961195632,0.29757932,74759.0,74758.0,0.220831]
[1730961196442,0.29758064,74759.0,74758.0,0.220831]
[1730961197446,0.28759564,74759.0,74758.0,0.220831]
[1730961198262,0.29758489,74759.0,74758.0,0.220831]
[1730961200544,0.06534387,74759.0,74758.0,0.220831]
[1730961201173,0.06534387,74759.0,74758.0,0.22501057]
[1730961201511,0.01002925,74759.0,74758.0,0.22501057]
[1730961203113,0.01002925,74759.0,74758.0,0.220831]
[1730961203370,0.01004455,74759.0,74758.0,0.220831]
[1730961204945,0.24228557,74759.0,74758.0,0.220831]
[1730961205147,1.74228557,74759.0,74758.0,0.220831]
[1730961205350,1.87452834,74759.0,74758.0,0.220831]
[1730961205551,2.03629134,74759.0,74758.0,0.220831]
[1730961205765,1.90452834,74759.0,74758.0,0.220831]
[1730961206167,1.90252834,74759.0,74758.0,0.220831]
[1730961206366,1.89252379,74759.0,74758.0,0.470831]
[1730961206642,1.88999974,74759.0,74758.0,0.470831]
[1730961207152,1.74228388,74759.0,74758.0,0.470831]
[1730961207337,0.24228388,74759.0,74758.0,0.470831]
[1730961207734,1.74228388,74759.0,74758.0,0.470831]
[1730961208092,0.24228388,74759.0,74758.0,0.470831]
[1730961210546,0.01004286,74759.0,74758.0,0.470831]
[1730961210749,4e-05,74759.0,74758.0,0.551731]
[1730961211772,4e-05,74759.0,74758.0,0.546731]
[1730961212003,4e-05,74759.0,74758.0,0.551731]
[1730961217964,4e-05,74759.0,74758.0,0.546731]
[1730961221158,4e-05,74759.0,74758.0,0.470831]
[1730961223580,4e-05,74759.0,74758.0,0.558931]
[1730961224680,4e-05,74759.0,74758.0,0.553931]
[1730961225545,4e-05,74759.0,74758.0,0.470831]
[1730961225757,0.24475661,74759.0,74758.0,0.470831]
[1730961225979,0.28927036,74759.0,74758.0,0.470831]
[1730961226241,1.81227036,74759.0,74758.0,0.470831]
[1730961226497,1.89357036,74759.0,74758.0,0.470831]
[1730961226723,1.93674697,74759.0,74758.0,0.470831]
[1730961226976,2.06898974,74759.0,74758.0,0.470831]
[1730961227699,2.20275274,74759.0,74758.0,0.470831]
[1730961227939,1.93674697,74759.0,74758.0,0.470831]
[1730961229854,2.07050997,74759.0,74758.0,0.470831]
[1730961230060,2.07061687,74759.0,74758.0,0.470831]
[1730961230298,2.07261687,74759.0,74758.0,0.470831]
[1730961231112,2.20485964,74759.0,74758.0,0.470831]
[1730961231516,2.20985964,74759.0,74758.0,0.470831]
[1730961234610,2.20485964,74759.0,74758.0,0.38806772]
[1730961234767,0.143784,74747.0,74746.0,0.000832]
[1730961235005,0.268788,74745.0,74744.0,0.19964782]
[1730961235364,0.40102902,74745.0,74744.0,0.19964782]
[1730961235621,0.102,74740.0,74739.0,0.000832]
[1730961235846,0.23224102,74740.0,74739.0,0.000832]
[1730961239415,0.48133802,74740.0,74739.0,0.000832]
[1730961239634,0.1,74737.0,74735.0,0.001514]
[1730961239875,0.37995688,74736.0,74735.0,0.001514]
[1730961240311,0.52376088,74736.0,74735.0,0.001514]
[1730961240518,0.263813,74731.0,74730.0,0.001514]
[1730961240721,1.18820513,74731.0,74730.0,0.001514]
[1730961240932,1.04239213,74731.0,74730.0,0.001514]
[1730961241191,2.54239213,74731.0,74730.0,0.001514]
[1730961241666,2.54439213,74731.0,74730.0,0.001514]
[1730961242159,2.6766349,74731.0,74730.0,0.001514]
[1730961242412,2.54438783,74731.0,74730.0,0.001514]
[1730961242875,2.54238783,74731.0,74730.0,0.001514]
[1730961243107,2.54438783,74731.0,74730.0,0.001514]
[1730961244037,0.26718783,74731.0,74730.0,0.001514]
[1730961244276,0.3254785,74731.0,74730.0,0.001514]
[1730961245149,0.64739324,74731.0,74730.0,0.001514]
[1730961245356,0.52267738,74731.0,74730.0,0.001514]
[1730961245988,0.60357738,74731.0,74730.0,0.001514]
[1730961246197,2.09363057,74731.0,74730.0,0.001514]
[1730961246400,2.10356679,74731.0,74730.0,0.001514]
[1730961246553,2.08866292,74731.0,74730.0,0.001514]
[1730961246749,2.08670292,74731.0,74730.0,0.001514]
[1730961247208,1.91150312,74731.0,74730.0,0.001514]
[1730961247539,1.95488992,74731.0,74730.0,0.001514]
[1730961247891,2.04076256,74731.0,74730.0,0.001514]
[1730961248299,1.91150312,74731.0,74730.0,0.001514]
[1730961249034,1.83060312,74731.0,74730.0,0.001514]
[1730961249241,1.82860312,74731.0,74730.0,0.001514]
[1730961249881,0.32860312,74731.0,74730.0,0.001514]
[1730961250088,0.33060312,74731.0,74730.0,0.001514]
[1730961251145,0.46284589,74731.0,74730.0,0.001514]
[1730961251347,0.33060312,74731.0,74730.0,0.001514]
[1730961251587,0.29560312,74731.0,74730.0,0.001514]
[1730961252246,0.2856669,74731.0,74730.0,0.001514]
[1730961252682,0.29760951,74731.0,74730.0,0.001514]
[1730961252910,0.29560951,74731.0,74730.0,0.001514]
[1730961253319,0.42985227,74731.0,74730.0,0.001514]
[1730961253536,0.2976095,74731.0,74730.0,0.001514]
[1730961253941,1.7976095,74731.0,74730.0,0.001514]
[1730961254146,1.7956095,74731.0,74730.0,0.001514]
[1730961255463,1.7856669,74731.0,74730.0,0.001514]
[1730961255672,1.79562718,74731.0,74730.0,0.001514]
[1730961256122,0.29562718,74731.0,74730.0,0.001514]
[1730961256368,0.1422413,74731.0,74730.0,0.001514]
[1730961256564,0.13228102,74731.0,74730.0,0.001514]
[1730961257325,4e-05,74731.0,74730.0,0.001514]
[1730961263223,4e-05,74731.0,74730.0,0.0056949]
[1730961263852,0.23228102,74731.0,74730.0,0.0056949]
[1730961264514,0.23228102,74731.0,74730.0,0.001514]
[1730961266899,4e-05,74731.0,74730.0,0.001514]
[1730961269566,0.23228102,74731.0,74730.0,0.001514]
[1730961269687,0.24225975,74731.0,74730.0,0.001514]
[1730961269921,0.10004,74731.0,74730.0,0.001514]
[1730961270579,0.01002072,74731.0,74730.0,0.001514]
[1730961270753,4e-05,74731.0,74730.0,0.001514]
[1730961270958,0.13228102,74731.0,74730.0,0.001514]
[1730961271162,0.24226174,74731.0,74730.0,0.001514]
[1730961271787,0.23228102,74731.0,74730.0,0.001514]
[1730961271958,0.24226364,74731.0,74730.0,0.001514]
[1730961273377,0.28029123,74731.0,74730.0,0.001514]
[1730961274220,1.74226364,74731.0,74730.0,0.001514]
[1730961274632,1.76726364,74731.0,74730.0,0.001514]
[1730961277538,1.74426364,74731.0,74730.0,0.001514]
[1730961278877,1.76726364,74731.0,74730.0,0.001514]
[1730961279109,1.75728102,74731.0,74730.0,0.001514]
[1730961279328,1.89951025,74731.0,74730.0,0.001514]
[1730961280474,2.03332325,74731.0,74730.0,0.001514]
[1730961281650,2.11592325,74731.0,74730.0,0.001514]
[1730961281898,2.11592325,74731.0,74721.0,0.000832]
[1730961281899,0.235818,74728.0,74727.0,3.97235275]
[1730961282166,0.40104548,74728.0,74727.0,3.97235275]
[1730961282675,2.6782424,74728.0,74727.0,3.97235275]
[1730961283136,2.80236198,74728.0,74727.0,3.97235275]
[1730961283371,2.6782424,74728.0,74727.0,3.97235275]
[1730961284556,1.9010424,74728.0,74727.0,3.97235275]
[1730961284784,1.7672244,74728.0,74727.0,3.97235275]
[1730961285399,1.9010424,74728.0,74727.0,3.97235275]
[1730961285617,2.03328517,74728.0,74727.0,3.93335664]
[1730961285833,1.9010424,74728.0,74727.0,3.93335664]
[1730961286058,1.90103735,74728.0,74727.0,3.93335664]
[1730961286313,1.76721935,74728.0,74727.0,3.93335664]
[1730961287562,1.90103735,74728.0,74727.0,3.93335664]
[1730961287771,1.82212228,74728.0,74727.0,3.93335664]
[1730961288208,1.95594028,74728.0,74727.0,3.93335664]
[1730961288645,1.82212228,74728.0,74727.0,3.93335664]
[1730961289082,2.08818305,74728.0,74727.0,3.93335664]
[1730961289762,2.08817993,74728.0,74727.0,3.93335664]
[1730961289993,2.07820472,74728.0,74727.0,3.93003666]
[1730961290219,2.08817991,74728.0,74727.0,3.93003666]
[1730961290644,1.95593714,74728.0,74727.0,3.93003666]
[1730961293209,1.94696195,74728.0,74727.0,3.93003666]
[1730961293421,1.95693744,74728.0,74727.0,3.93003666]
[1730961293652,1.95793744,74728.0,74727.0,3.93003666]
[1730961294280,1.95793744,74728.0,74727.0,3.92198275]
[1730961294934,2.0926533,74728.0,74727.0,3.51318838]
[1730961295178,2.09023744,74728.0,74727.0,3.47352524]
[1730961296206,2.09023744,74728.0,74727.0,3.42756524]
[1730961296426,2.09023744,74728.0,74727.0,2.89536524]
[1730961296844,2.09023744,74728.0,74727.0,2.84010487]
[1730961297055,2.34719607,74728.0,74727.0,2.84010487]
[1730961297270,2.47191193,74728.0,74727.0,2.33390487]
[1730961297520,2.47191193,74728.0,74727.0,2.31054387]
[1730961298146,2.47191193,74728.0,74727.0,2.25985387]
[1730961298147,2.73731193,74728.0,74727.0,2.25985387]
[1730961298380,2.73962413,74728.0,74727.0,2.25985387]
[1730961299625,2.88022413,74728.0,74727.0,2.25985387]
[1730961300866,2.87024864,74728.0,74727.0,2.25985387]
[1730961301084,2.88021708,74728.0,74727.0,2.25985387]
[1730961301331,2.87024864,74728.0,74727.0,1.75256387]
[1730961301559,2.79889122,74728.0,74727.0,1.68452745]
[1730961302031,2.54193259,74728.0,74727.0,1.68452745]
[1730961302244,2.66664845,74728.0,74727.0,1.68452745]
[1730961302463,2.66831245,74728.0,74727.0,1.68452745]
[1730961303621,2.65834393,74728.0,74727.0,1.68452745]
[1730961304528,2.51774393,74728.0,74727.0,1.68452745]
[1730961304740,2.6499867,74728.0,74727.0,1.68452745]
[1730961305190,2.51774393,74728.0,74727.0,1.65252688]
[1730961306345,2.51774393,74728.0,74727.0,1.62574902]
[1730961307051,2.44204393,74728.0,74727.0,1.62574902]
[1730961307273,2.35205401,74728.0,74727.0,1.62574902]
[1730961307477,2.34974181,74728.0,74727.0,1.62574902]
[1730961308205,2.34874181,74728.0,74727.0,1.62574902]
[1730961308420,2.34774181,74728.0,74727.0,1.62574902]
[1730961309544,2.62058458,74728.0,74727.0,1.62574902]
[1730961309754,2.47998458,74728.0,74727.0,1.62574902]
[1730961310208,2.47998458,74728.0,74727.0,1.53253237]
[1730961310209,2.74530044,74728.0,74727.0,1.53253237]
[1730961310472,2.63056645,74728.0,74727.0,1.53253237]
[1730961310739,2.63056645,74728.0,74727.0,0.88646238]
[1730961311183,2.63056645,74728.0,74686.0,0.01]
[1730961311184,0.15885,74710.0,74699.0,0.078]
[1730961311406,0.51580688,74710.0,74709.0,0.16781346]
[1730961311619,0.51580688,74710.0,74699.0,0.078]
[1730961311620,0.258852,74709.0,74699.0,0.078]
[1730961311849,0.22671586,74704.0,74699.0,0.078]
[1730961312093,0.40441388,74704.0,74699.0,0.078]
[1730961312295,0.40441388,74704.0,74692.0,0.079]
[1730961312497,2.03827488,74704.0,74692.0,0.079]
[1730961312734,2.11916363,74704.0,74692.0,0.079]
[1730961313133,1.90441388,74704.0,74692.0,0.079]
[1730961313554,2.03827488,74704.0,74692.0,0.079]
[1730961316140,2.02829301,74704.0,74692.0,0.079]
[1730961316357,2.03826864,74704.0,74692.0,0.079]
[1730961316815,2.03630864,74704.0,74692.0,0.079]
[1730961317044,2.20396064,74704.0,74686.0,0.20047982]
[1730961317260,2.16805213,74704.0,74687.0,0.0819]
[1730961317468,2.18052159,74704.0,74687.0,0.0819]
[1730961317688,2.18052182,74704.0,74687.0,0.0819]
[1730961318128,2.19252182,74704.0,74703.0,0.001832]
[1730961318653,2.18252182,74704.0,74703.0,0.000832]
[1730961318869,0.023,74692.0,74687.0,0.0819]
[1730961319101,0.26521644,74692.0,74687.0,0.0819]
[1730961319345,0.25524102,74692.0,74687.0,0.0819]
[1730961319559,0.26721349,74692.0,74687.0,0.0819]
[1730961319780,1.76521349,74692.0,74687.0,0.0819]
[1730961321906,1.76721349,74692.0,74687.0,0.0819]
[1730961322116,1.89945626,74692.0,74687.0,0.0819]
[1730961323000,1.76721086,74692.0,74680.0,0.0457]
[1730961323223,1.75724102,74692.0,74682.0,0.0762]
[1730961323484,1.83464336,74692.0,74682.0,0.0762]
[1730961323691,1.96852636,74692.0,74682.0,0.0762]
[1730961323889,1.95855704,74692.0,74682.0,0.0762]
[1730961324067,1.96688728,74692.0,74682.0,0.0762]
[1730961324960,2.10077028,74692.0,74682.0,0.0762]
[1730961325182,1.83464451,74692.0,74682.0,0.0762]
[1730961326068,1.83264451,74692.0,74691.0,0.001233]
[1730961326279,1.81464451,74692.0,74691.0,0.079833]
[1730961326484,1.80218297,74692.0,74691.0,0.079833]
[1730961326689,0.29718297,74692.0,74691.0,0.079833]
[1730961326903,0.29918297,74692.0,74691.0,0.079833]
[1730961327107,0.29718297,74692.0,74691.0,0.079833]
[1730961328450,0.29918297,74692.0,74691.0,0.079833]
[1730961328667,0.29718297,74692.0,74691.0,0.079833]
[1730961329527,0.29918297,74692.0,74691.0,0.001233]
[1730961329743,1.82218297,74692.0,74691.0,0.001233]
[1730961330355,1.83464434,74692.0,74691.0,0.001233]
[1730961330961,1.83468434,74692.0,74691.0,0.001233]
[1730961331216,2.10081011,74692.0,74691.0,0.001233]
[1730961332079,2.10581011,74692.0,74691.0,0.001233]
[1730961332284,2.11081011,74692.0,74691.0,0.001233]
[1730961333251,2.11080607,74692.0,74691.0,0.001233]
[1730961333839,2.11180607,74692.0,74691.0,0.001233]
[1730961334974,2.11380607,74692.0,74691.0,0.001233]
[1730961336557,1.8376803,74692.0,74691.0,0.001233]
[1730961336923,1.83022297,74692.0,74691.0,0.001233]
[1730961337213,1.83767555,74692.0,74691.0,0.001233]
[1730961337406,1.8252183,74692.0,74691.0,0.001233]
[1730961337553,1.83667679,74692.0,74691.0,0.001233]
[1730961337735,1.95702667,74692.0,74691.0,0.001233]
[1730961338355,2.09090967,74692.0,74691.0,0.001233]
[1730961341974,2.13820967,74692.0,74691.0,0.001233]
[1730961342393,1.83467679,74692.0,74691.0,0.001233]
[1730961343348,1.83567679,74692.0,74691.0,0.001233]
[1730961344166,1.8132525,74692.0,74691.0,0.001233]
[1730961344368,1.83571423,74692.0,74691.0,0.001233]
[1730961344565,1.82323549,74692.0,74691.0,0.001233]
[1730961344789,1.83571668,74692.0,74691.0,0.001233]
[1730961344963,1.83471668,74692.0,74691.0,0.001233]
[1730961345190,1.83271668,74692.0,74691.0,0.001233]
[1730961345391,1.83271668,74692.0,74691.0,0.079933]
[1730961345582,1.80971668,74692.0,74691.0,0.079933]
[1730961347216,1.83271668,74692.0,74691.0,0.079933]
[1730961347427,1.80971668,74692.0,74691.0,0.079933]
[1730961347863,1.79973723,74692.0,74691.0,0.079933]
[1730961348061,1.80972501,74692.0,74691.0,0.079933]
[1730961348280,0.19724028,74692.0,74691.0,0.079933]
[1730961348518,0.1422688,74692.0,74691.0,0.079933]
[1730961349618,0.2422688,74692.0,74691.0,0.079933]
[1730961351416,0.24226544,74692.0,74691.0,0.079933]
[1730961352285,1.74226544,74692.0,74691.0,0.079933]
[1730961355074,1.73228102,74692.0,74691.0,0.001233]
[1730961355282,0.39750587,74692.0,74691.0,0.001233]
[1730961355495,0.2652631,74692.0,74691.0,0.001233]
[1730961355713,0.2672631,74692.0,74691.0,0.001233]
[1730961355935,1.76726286,74692.0,74691.0,0.001233]
[1730961356634,1.90114586,74692.0,74691.0,0.001233]
[1730961357325,1.76726286,74692.0,74691.0,0.001233]
[1730961357563,1.90114586,74692.0,74691.0,0.001233]
[1730961357798,1.86612876,74692.0,74691.0,0.001233]
[1730961358461,1.86412876,74692.0,74691.0,0.001233]
[1730961358967,1.77773889,74692.0,74691.0,0.001233]
[1730961360516,1.76526286,74692.0,74691.0,0.001233]
[1730961361325,1.77773885,74692.0,74691.0,0.001233]
[1730961362225,1.91162185,74692.0,74691.0,0.001233]
[1730961362429,1.91362185,74692.0,74691.0,0.001233]
[1730961362932,2.03632185,74692.0,74691.0,0.001233]
[1730961363985,1.95862185,74692.0,74691.0,0.001233]
[1730961364221,1.91162185,74692.0,74691.0,0.001233]
[1730961364431,1.89914586,74692.0,74691.0,0.001233]
[1730961364645,1.76726286,74692.0,74691.0,0.001233]
[1730961364894,1.76826286,74692.0,74691.0,0.001233]
[1730961365525,1.76526286,74692.0,74691.0,0.001233]
[1730961366132,1.8910083,74692.0,74691.0,0.001233]
[1730961366821,1.76726286,74692.0,74691.0,0.001233]
[1730961367679,1.76526286,74692.0,74691.0,0.001233]
[1730961368544,2.54246286,74692.0,74691.0,0.001233]
[1730961370937,2.54446286,74692.0,74691.0,0.001233]
[1730961372079,2.54246286,74692.0,74691.0,0.001233]
[1730961374372,1.73228102,74692.0,74691.0,0.001233]
[1730961374586,1.74226741,74692.0,74691.0,0.047933]
[1730961374819,1.73228102,74692.0,74691.0,0.047933]
[1730961375051,1.74226658,74692.0,74691.0,0.047933]
[1730961377079,4e-05,74692.0,74691.0,0.123933]
[1730961377308,4e-05,74692.0,74691.0,0.25632633]
[1730961377748,4e-05,74692.0,74691.0,0.25364886]
[1730961377975,4e-05,74692.0,74691.0,0.38744886]
[1730961379693,0.36255114,74691.0,74689.0,0.05825649]
[1730961379902,0.36255114,74691.0,74690.0,0.12471586]
[1730961380334,0.36255114,74691.0,74690.0,0.12971586]
[1730961380540,0.36255114,74691.0,74690.0,0.005]
[1730961380748,0.36255114,74691.0,74690.0,0.12971586]
[1730961380973,4e-05,74692.0,74691.0,0.005]
[1730961381179,4e-05,74692.0,74691.0,0.00767702]
[1730961381609,4e-05,74692.0,74691.0,0.005]
[1730961382087,4e-05,74692.0,74691.0,0.00767702]
[1730961382892,4e-05,74692.0,74691.0,0.13407702]
[1730961385736,4e-05,74692.0,74691.0,0.27364102]
[1730961388729,4e-05,74692.0,74691.0,0.27782287]
[1730961391009,0.001666,74703.0,74702.0,0.1347]
[1730961391277,0.001666,74703.0,74702.0,0.13888185]
[1730961392446,0.001666,74703.0,74702.0,0.14155868]
[1730961392657,0.001666,74703.0,74702.0,0.14655848]
[1730961392869,0.001666,74703.0,74702.0,0.14388185]
[1730961393512,0.001666,74703.0,74702.0,0.26859771]
[1730961395368,0.001666,74703.0,74702.0,0.26859718]
[1730961395795,0.001666,74703.0,74702.0,0.26441586]
[1730961396009,0.001666,74703.0,74702.0,0.26859718]
[1730961396420,0.001666,74703.0,74702.0,0.26359718]
[1730961396621,0.20047982,74727.0,74707.0,0.0918]
[1730961396622,0.20047982,74718.0,74707.0,0.0918]
[1730961396831,0.20047982,74718.0,74707.0,0.27672234]
[1730961398671,0.20047982,74718.0,74707.0,0.4014382]
[1730961398883,0.20047982,74718.0,74707.0,0.40143774]
[1730961399497,0.20047982,74718.0,74707.0,0.39643774]
[1730961399702,0.20047982,74718.0,74707.0,0.40143774]
[1730961399920,0.20047982,74718.0,74707.0,0.26419672]
[1730961400130,0.20047982,74718.0,74707.0,0.26919672]
[1730961402023,0.20047982,74718.0,74707.0,0.27187324]
[1730961404300,0.20047982,74718.0,74707.0,0.40143774]
[1730961407616,0.20047982,74718.0,74717.0,0.12971586]
[1730961407845,0.20047982,74718.0,74717.0,0.2123731]
[1730961408054,0.20047982,74727.0,74726.0,0.005]
[1730961408266,0.20047982,74727.0,74726.0,0.13389672]
[1730961408487,0.001664,74728.0,74726.0,0.13389672]
[1730961408687,0.001664,74728.0,74727.0,0.00418086]
[1730961409520,0.001664,74728.0,74727.0,0.00918086]
[1730961410166,0.001664,74728.0,74727.0,0.005]
[1730961410386,0.001664,74728.0,74727.0,0.00918066]
[1730961412366,0.001664,74728.0,74727.0,0.00418066]
[1730961412625,0.001664,74728.0,74727.0,0.00918066]
[1730961417358,0.001664,74728.0,74727.0,0.005]
[1730961417839,0.001664,74728.0,74727.0,0.00918065]
[1730961419008,0.001664,74728.0,74727.0,0.21697256]
[1730961419217,0.001664,74728.0,74727.0,0.21429651]
[1730961419832,0.001664,74728.0,74727.0,0.13389651]
[1730961420906,0.001664,74728.0,74727.0,0.12971586]
[1730961421109,0.001664,74728.0,74727.0,0.13389637]
[1730961423458,0.001664,74728.0,74727.0,0.16062637]
[1730961423700,0.001664,74728.0,74727.0,0.13389637]
[1730961423921,0.001664,74728.0,74727.0,0.12971586]
[1730961424141,0.001664,74728.0,74727.0,0.13389636]
[1730961427075,0.001664,74728.0,74727.0,0.0091805]
[1730961427564,0.001664,74728.0,74727.0,0.005]
[1730961427796,0.001664,74728.0,74727.0,0.00918044]
[1730961428315,0.001664,74728.0,74727.0,0.01185649]
[1730961428746,0.001664,74728.0,74727.0,0.13657235]
[1730961430743,0.001664,74728.0,74727.0,0.27813732]
[1730961430946,0.001664,74728.0,74727.0,0.40143732]
[1730961431158,0.001664,74728.0,74727.0,0.4014371]
[1730961431390,4e-05,74731.0,74730.0,0.015]
[1730961431589,0.001664,74740.0,74734.0,0.015]
[1730961431788,0.001664,74740.0,74734.0,0.3996371]
[1730961432038,0.001664,74740.0,74734.0,0.44133716]
[1730961432239,0.001664,74740.0,74739.0,0.015]
[1730961432437,0.001664,74740.0,74739.0,0.16278297]
[1730961432803,0.001664,74740.0,74739.0,0.16078297]
[1730961434134,0.001664,74740.0,74739.0,0.23698297]
[1730961434342,0.0773,74767.0,74753.0,0.12971586]
[1730961434550,0.0773,74767.0,74753.0,0.005]
[1730961434760,0.0773,74767.0,74753.0,0.01586673]
[1730961434972,0.0773,74767.0,74758.0,0.005]
[1730961435211,0.0773,74767.0,74758.0,0.13389608]
[1730961436232,0.0482,74768.0,74758.0,0.13389608]
[1730961436916,0.0482,74768.0,74758.0,0.13657079]
[1730961437125,0.0828,74773.0,74758.0,0.13657079]
[1730961437767,0.0828,74773.0,74758.0,0.18995513]
[1730961437999,0.0828,74773.0,74758.0,0.18995313]
[1730961438200,0.0828,74773.0,74758.0,0.33219415]
[1730961438407,0.0828,74773.0,74758.0,0.33151944]
[1730961438624,0.24847982,74774.0,74758.0,0.32951944]
[1730961438887,0.24847982,74774.0,74758.0,0.37911944]
[1730961439552,0.24847982,74774.0,74758.0,0.37911925]
[1730961441876,0.001704,74759.0,74758.0,0.37911925]
[1730961442321,0.001704,74759.0,74758.0,0.25440339]
[1730961442591,0.001704,74759.0,74758.0,0.06256237]
[1730961442807,0.001704,74759.0,74758.0,0.18727823]